bitfinex-derivatives/quotes_BTCF0:USTF0_20250608
["timestamp","ask_amount","ask_price","bid_price","bid_amount"]
[1749416762834,1.8302306,106180.0,106170.0,0.7216889]
[1749416763428,1.641964,106180.0,106170.0,0.7216889]
[1749416763724,1.8302306,106180.0,106170.0,0.7216889]
[1749416767021,1.8302306,106180.0,106170.0,0.42773576]
[1749416768021,0.1882843,106170.0,106160.0,0.34116634]
[1749416768222,1.46853306,106170.0,106150.0,0.10682876]
[1749416768421,1.01070186,106160.0,106150.0,0.34222776]
[1749416768622,1.61815524,106160.0,106150.0,0.43641188]
[1749416769127,1.61815524,106160.0,106150.0,0.51294706]
[1749416769322,1.61815524,106160.0,106150.0,0.51394706]
[1749416769625,1.61815524,106160.0,106150.0,0.46686786]
[1749416770018,1.61815524,106160.0,106150.0,0.46886786]
[1749416770626,1.61815524,106160.0,106150.0,0.46686786]
[1749416770827,1.62015524,106160.0,106150.0,0.46686786]
[1749416771928,1.62015524,106160.0,106150.0,0.46586786]
[1749416772128,1.62215524,106160.0,106150.0,0.46586786]
[1749416773327,1.262022,106160.0,106150.0,0.46586786]
[1749416773526,1.62215524,106160.0,106150.0,0.46586786]
[1749416774421,1.62215524,106160.0,106150.0,0.41878866]
[1749416777428,1.26135524,106160.0,106150.0,0.41878866]
[1749416777633,1.62215524,106160.0,106150.0,0.41878866]
[1749416779628,1.44208862,106160.0,106150.0,0.41878866]
[1749416779833,1.58588862,106160.0,106150.0,0.41878866]
[1749416780037,1.58588862,106160.0,106150.0,0.42283744]
[1749416784735,1.405822,106160.0,106150.0,0.42283744]
[1749416784931,1.58588862,106160.0,106150.0,0.42283744]
[1749416785836,1.58588862,106160.0,106150.0,0.71595767]
[1749416787129,1.58588862,106160.0,106150.0,0.86415767]
[1749416787637,1.22508862,106160.0,106150.0,0.86415767]
[1749416788133,1.405822,106160.0,106150.0,0.86415767]
[1749416788336,1.58588862,106160.0,106150.0,0.86415767]
[1749416788737,1.58588862,106160.0,106150.0,0.99885767]
[1749416789434,1.15916862,106160.0,106150.0,0.99885767]
[1749416789635,1.58592862,106160.0,106150.0,0.99885767]
[1749416791537,1.22512862,106160.0,106150.0,0.99885767]
[1749416791738,1.58592862,106160.0,106150.0,0.99885767]
[1749416795442,1.22512862,106160.0,106150.0,0.99885767]
[1749416795644,1.58592862,106160.0,106150.0,0.99885767]
[1749416796741,1.22512862,106160.0,106150.0,0.99885767]
[1749416797043,1.58592862,106160.0,106150.0,0.99885767]
[1749416797435,1.22512862,106160.0,106150.0,0.99885767]
[1749416797636,1.58592862,106160.0,106150.0,0.99885767]
[1749416797836,1.22512862,106160.0,106150.0,0.99885767]
[1749416798135,1.58592862,106160.0,106150.0,0.99885767]
[1749416799335,1.58592862,106160.0,106150.0,0.70573744]
[1749416799535,1.76599524,106160.0,106150.0,0.70573744]
[1749416802848,1.40519524,106160.0,106150.0,0.70573744]
[1749416803048,1.76599524,106160.0,106150.0,0.70573744]
[1749416803849,1.40519524,106160.0,106150.0,0.70573744]
[1749416804052,1.76599524,106160.0,106150.0,0.70573744]
[1749416804849,1.045062,106160.0,106150.0,0.70573744]
[1749416805049,1.58592862,106160.0,106150.0,0.70573744]
[1749416806356,1.58592862,106160.0,106150.0,0.99987099]
[1749416806956,1.22512862,106160.0,106150.0,0.99987099]
[1749416807258,1.58592862,106160.0,106150.0,0.99987099]
[1749416808759,1.22512862,106160.0,106150.0,0.99987099]
[1749416808958,1.58592862,106160.0,106150.0,0.99987099]
[1749416809558,1.22512862,106160.0,106150.0,0.99987099]
[1749416809758,1.58592862,106160.0,106150.0,0.99987099]
[1749416810157,1.22512862,106160.0,106150.0,0.99987099]
[1749416810362,1.58592862,106160.0,106150.0,0.99987099]
[1749416810656,1.22512862,106160.0,106150.0,0.99987099]
[1749416810859,1.58592862,106160.0,106150.0,0.99987099]
[1749416811458,1.22512862,106160.0,106150.0,0.99987099]
[1749416811959,1.58592862,106160.0,106150.0,0.99987099]
[1749416813160,1.22512862,106160.0,106150.0,0.99987099]
[1749416813362,1.58592862,106160.0,106150.0,0.99987099]
[1749416815458,1.22512862,106160.0,106150.0,0.99987099]
[1749416815658,1.58592862,106160.0,106150.0,0.99987099]
[1749416817070,1.22512862,106160.0,106150.0,0.99987099]
[1749416817368,1.58592862,106160.0,106150.0,0.99987099]
[1749416817863,1.22512862,106160.0,106150.0,0.99987099]
[1749416818067,1.58592862,106160.0,106150.0,0.99987099]
[1749416819168,1.76599524,106160.0,106150.0,0.70573744]
[1749416819967,1.40519524,106160.0,106150.0,0.70573744]
[1749416820162,1.76599524,106160.0,106150.0,0.70573744]
[1749416820871,1.76599524,106160.0,106150.0,0.99990698]
[1749416824471,1.40519524,106160.0,106150.0,0.99990698]
[1749416824669,1.76599524,106160.0,106150.0,0.99990698]
[1749416827875,1.76599524,106160.0,106150.0,0.70573744]
[1749416829976,1.58592862,106160.0,106150.0,0.70573744]
[1749416832880,1.44622862,106160.0,106150.0,0.70573744]
[1749416833180,1.44622862,106160.0,106150.0,0.85083744]
[1749416833581,1.44622862,106160.0,106150.0,1.23313369]
[1749416835376,1.44642862,106160.0,106150.0,1.23313369]
[1749416836083,1.44642862,106160.0,106150.0,1.52730265]
[1749416836387,1.08562862,106160.0,106150.0,1.52730265]
[1749416836582,1.44642862,106160.0,106150.0,1.52730265]
[1749416836783,1.44642862,106160.0,106150.0,1.1450064]
[1749416840583,1.08562862,106160.0,106150.0,1.1450064]
[1749416840782,1.44642862,106160.0,106150.0,1.1450064]
[1749416843693,1.08562862,106160.0,106150.0,1.1450064]
[1749416843992,1.44642862,106160.0,106150.0,1.1450064]
[1749416848690,0.0042,106160.0,106150.0,1.35336302]
[1749416848891,0.004,106160.0,106150.0,1.71416302]
[1749416849190,0.18426662,106160.0,106150.0,1.71416302]
[1749416849590,0.18426662,106160.0,106150.0,1.75184302]
[1749416850887,0.18226662,106160.0,106150.0,1.75184302]
[1749416851090,0.18026662,106160.0,106150.0,1.75184302]
[1749416851288,0.18126662,106160.0,106150.0,1.75184302]
[1749416852894,0.18126662,106160.0,106150.0,1.45767406]
[1749416855998,0.18126662,106160.0,106150.0,1.75172332]
[1749416857690,0.0012,106160.0,106150.0,1.84972332]
[1749416857893,0.60670662,106170.0,106160.0,0.188302]
[1749416858090,0.60670662,106170.0,106160.0,1.54899946]
[1749416858298,0.18006662,106170.0,106160.0,1.36893284]
[1749416858499,0.18006662,106170.0,106160.0,1.46313471]
[1749416858795,0.18026662,106170.0,106160.0,1.75708542]
[1749416858997,0.18006662,106170.0,106160.0,1.75708542]
[1749416859191,0.18026662,106170.0,106160.0,1.5549212]
[1749416859387,0.18126662,106170.0,106160.0,1.5549212]
[1749416861103,0.18126662,106170.0,106160.0,1.9815612]
[1749416867001,0.18106662,106170.0,106160.0,1.9815612]
[1749416867203,0.18126662,106170.0,106160.0,1.9815612]
[1749416870410,0.18126662,106170.0,106160.0,1.98560998]
[1749416871600,0.18126662,106170.0,106160.0,2.36784082]
[1749416871911,0.18126662,106170.0,106160.0,2.07389011]
[1749416872605,0.18126662,106170.0,106160.0,1.71309011]
[1749416872802,0.18126662,106170.0,106160.0,1.89382349]
[1749416873010,0.18126662,106170.0,106160.0,2.07389011]
[1749416874713,0.18126662,106170.0,106160.0,2.36759779]
[1749416874913,0.18126662,106170.0,106160.0,1.98536695]
[1749416878511,0.18126662,106170.0,106160.0,2.05131695]
[1749416878909,0.0012,106170.0,106160.0,2.23138357]
[1749416879109,9.691e-05,106180.0,106170.0,0.1882843]
[1749416879305,9.691e-05,106180.0,106170.0,1.52743911]
[1749416879714,9.691e-05,106180.0,106170.0,1.62163211]
[1749416879715,0.18036353,106180.0,106170.0,1.62163211]
[1749416880218,0.18236353,106180.0,106170.0,1.62163211]
[1749416880918,0.18436353,106180.0,106170.0,1.62163211]
[1749416882820,0.18436353,106180.0,106170.0,1.71959211]
[1749416885617,0.18436353,106180.0,106170.0,1.72364089]
[1749416887932,0.18436353,106180.0,106170.0,1.36284089]
[1749416888133,0.18436353,106180.0,106170.0,1.72364089]
[1749416889031,0.18436353,106180.0,106170.0,1.36284089]
[1749416889234,0.18436353,106180.0,106170.0,1.72364089]
[1749416889832,0.18436353,106180.0,106170.0,1.3417527]
[1749416890823,0.18436353,106180.0,106170.0,1.72364089]
[1749416891026,0.33026353,106180.0,106170.0,1.72364089]
[1749416892831,0.33026353,106180.0,106170.0,1.36284089]
[1749416893039,0.33026353,106180.0,106170.0,1.72364089]
[1749416893336,0.33026353,106180.0,106170.0,2.15008089]
[1749416893837,0.33026353,106180.0,106170.0,1.78928089]
[1749416894043,0.33026353,106180.0,106170.0,2.15008089]
[1749416897835,0.33026353,106180.0,106170.0,2.44366521]
[1749416898136,0.33026353,106180.0,106170.0,2.06177702]
[1749416899842,0.33026353,106180.0,106170.0,1.70097702]
[1749416900042,0.33026353,106180.0,106170.0,2.06177702]
[1749416901544,0.33026353,106180.0,106170.0,1.7681927]
[1749416902346,0.33026353,106180.0,106170.0,2.06183969]
[1749416902946,0.33026353,106180.0,106170.0,1.7681927]
[1749416903146,0.33026353,106180.0,106170.0,1.8058627]
[1749416903349,0.33026353,106180.0,106170.0,1.4450627]
[1749416903645,0.33026353,106180.0,106170.0,1.8058627]
[1749416904447,0.33026353,106180.0,106170.0,2.18775089]
[1749416904641,0.33026353,106180.0,106170.0,1.82695089]
[1749416904846,0.33026353,106180.0,106170.0,2.18775089]
[1749416905449,0.33026353,106180.0,106170.0,1.82695089]
[1749416905648,0.33026353,106180.0,106170.0,2.18775089]
[1749416906647,0.33026353,106180.0,106170.0,1.8058627]
[1749416908949,0.33026353,106180.0,106170.0,2.27610085]
[1749416910353,0.33026353,106180.0,106170.0,2.30438085]
[1749416911253,0.33026353,106180.0,106170.0,1.94358085]
[1749416911654,0.33026353,106180.0,106170.0,2.30438085]
[1749416915157,0.33026353,106180.0,106170.0,1.94358085]
[1749416915656,0.33026353,106180.0,106170.0,2.30438085]
[1749416917759,0.33026353,106180.0,106170.0,1.94358085]
[1749416918159,0.33026353,106180.0,106170.0,2.30438085]
[1749416923263,0.33026353,106180.0,106170.0,1.94358085]
[1749416923563,0.33026353,106180.0,106170.0,2.30438085]
[1749416925267,0.33026353,106180.0,106170.0,2.02639423]
[1749416925463,0.33026353,106180.0,106170.0,2.20646085]
[1749416926461,0.33026353,106180.0,106170.0,1.7362227]
[1749416927468,0.33026353,106180.0,106170.0,1.3754227]
[1749416927770,0.33026353,106180.0,106170.0,1.8341027]
[1749416928257,0.33026353,106180.0,106170.0,2.30434085]
[1749416929669,0.33026353,106180.0,106170.0,1.94354085]
[1749416929870,0.33026353,106180.0,106170.0,2.30434085]
[1749416930166,0.33026353,106180.0,106170.0,1.8341027]
[1749416930569,0.33026353,106180.0,106170.0,1.4733027]
[1749416930869,0.33026353,106180.0,106170.0,1.8341027]
[1749416932571,0.18436353,106180.0,106170.0,1.8341027]
[1749416933167,0.18436353,106180.0,106170.0,2.21641831]
[1749416938177,0.18436353,106180.0,106170.0,1.85561831]
[1749416938378,0.18436353,106180.0,106170.0,2.21641831]
[1749416942788,0.18436353,106180.0,106170.0,1.8341027]
[1749416943486,0.18436353,106180.0,106170.0,1.4733027]
[1749416943689,0.18436353,106180.0,106170.0,1.8341027]
[1749416949893,0.18436353,106180.0,106170.0,2.21642911]
[1749416950995,0.18436353,106180.0,106170.0,1.8341027]
[1749416956103,0.18436353,106180.0,106170.0,2.21642911]
[1749416958203,0.18436353,106180.0,106170.0,1.8341027]
[1749416959806,0.18436353,106180.0,106170.0,2.30434085]
[1749416960606,0.18436353,106180.0,106170.0,1.94354085]
[1749416960806,0.18436353,106180.0,106170.0,2.30434085]
[1749416961107,0.18436353,106180.0,106170.0,1.94354085]
[1749416961303,0.18436353,106180.0,106170.0,2.30434085]
[1749416962702,0.18436353,106180.0,106170.0,2.12427423]
[1749416963108,0.32486353,106180.0,106170.0,2.12427423]
[1749416963311,0.50493015,106180.0,106170.0,2.12427423]
[1749416964409,0.50493015,106180.0,106170.0,1.76347423]
[1749416964610,0.50493015,106180.0,106170.0,2.12427423]
[1749416964810,0.50493015,106180.0,106170.0,1.76347423]
[1749416965109,0.50493015,106180.0,106170.0,2.12427423]
[1749416969218,0.50493015,106180.0,106170.0,2.30434085]
[1749416969816,0.50493015,106180.0,106170.0,2.68665821]
[1749416970309,0.50493015,106180.0,106170.0,2.21642006]
[1749416970707,0.50493015,106180.0,106170.0,1.85562006]
[1749416971110,0.50493015,106180.0,106170.0,2.21642006]
[1749416971309,0.50493015,106180.0,106170.0,1.75774006]
[1749416971510,0.50493015,106180.0,106170.0,2.11854006]
[1749416973213,0.50493015,106180.0,106170.0,1.93847344]
[1749416974714,0.50493015,106180.0,106170.0,1.57767344]
[1749416975018,0.50493015,106180.0,106170.0,1.93847344]
[1749416975515,0.50493015,106180.0,106170.0,2.40871159]
[1749416976118,0.50493015,106180.0,106170.0,2.02639423]
[1749416976918,0.50493015,106180.0,106170.0,1.66559423]
[1749416977120,0.50493015,106180.0,106170.0,2.02639423]
[1749416978312,0.50493015,106180.0,106170.0,1.66559423]
[1749416978619,0.50493015,106180.0,106170.0,2.02639423]
[1749416978920,0.50493015,106180.0,106170.0,1.55615608]
[1749416984420,0.50493015,106180.0,106170.0,1.19535608]
[1749416984624,0.50493015,106180.0,106170.0,1.55615608]
[1749416985323,0.00429691,106180.0,106170.0,2.12815382]
[1749416985623,0.18436353,106180.0,106170.0,2.12815382]
[1749416994529,0.18436353,106180.0,106170.0,1.8340627]
[1749416995334,0.18436353,106180.0,106170.0,1.4732627]
[1749416995626,0.18436353,106180.0,106170.0,1.8340627]
[1749416996429,0.18436353,106180.0,106170.0,2.30430085]
[1749416997936,0.18436353,106180.0,106170.0,1.94350085]
[1749416998321,0.18436353,106180.0,106170.0,2.30430085]
[1749416999134,0.18436353,106180.0,106170.0,2.68662272]
[1749416999834,0.18436353,106180.0,106170.0,2.21638457]
[1749417002035,0.18436353,106180.0,106170.0,1.85558457]
[1749417002235,0.18436353,106180.0,106170.0,2.21638457]
[1749417003139,0.00429691,106180.0,106170.0,2.21638457]
[1749417003329,0.18436353,106180.0,106170.0,2.21638457]
[1749417004135,0.18436353,106180.0,106170.0,1.85558457]
[1749417004327,0.18436353,106180.0,106170.0,2.21638457]
[1749417005133,0.18436353,106180.0,106170.0,2.68662272]
[1749417005440,0.18436353,106180.0,106170.0,2.68257394]
[1749417005739,0.18436353,106180.0,106170.0,2.30025207]
[1749417006333,0.18436353,106180.0,106170.0,1.93945207]
[1749417006639,0.18436353,106180.0,106170.0,2.30430085]
[1749417008025,0.18436353,106180.0,106170.0,1.94350085]
[1749417008236,0.18436353,106180.0,106170.0,2.30430085]
[1749417008737,0.18436353,106180.0,106170.0,2.68662404]
[1749417008936,0.18436353,106180.0,106170.0,2.21638589]
[1749417011437,0.18436353,106180.0,106170.0,1.85558589]
[1749417011635,0.18436353,106180.0,106170.0,2.21638589]
[1749417014137,0.18436353,106180.0,106170.0,1.8340627]
[1749417016039,0.18436353,106180.0,106170.0,2.30430085]
[1749417018935,0.18436353,106180.0,106170.0,2.12399423]
[1749417019144,0.36443015,106180.0,106170.0,2.12399423]
[1749417019644,0.18436353,106180.0,106170.0,2.30406085]
[1749417021045,0.31876353,106180.0,106170.0,2.30406085]
[1749417022947,0.49883015,106180.0,106170.0,2.30406085]
[1749417026148,0.31876353,106180.0,106170.0,2.30406085]
[1749417026543,0.31876353,106180.0,106170.0,1.4730227]
[1749417026847,0.31876353,106180.0,106170.0,1.8338227]
[1749417027151,0.31876353,106180.0,106170.0,2.12789673]
[1749417030547,0.31876353,106180.0,106170.0,1.8338227]
[1749417031047,0.31876353,106180.0,106170.0,1.4730227]
[1749417031248,0.31876353,106180.0,106170.0,1.8338227]
[1749417031947,0.31876353,106180.0,106170.0,2.21611833]
[1749417033151,0.31876353,106180.0,106170.0,1.8338227]
[1749417033550,0.31876353,106180.0,106170.0,2.30406085]
[1749417034755,0.31876353,106180.0,106170.0,1.94326085]
[1749417034958,0.31876353,106180.0,106170.0,2.30406085]
[1749417035355,0.31876353,106180.0,106170.0,1.8338227]
[1749417037155,0.31876353,106180.0,106170.0,2.21612586]
[1749417037758,0.31876353,106180.0,106170.0,1.85532586]
[1749417037960,0.31876353,106180.0,106170.0,2.21612586]
[1749417038257,0.31876353,106180.0,106170.0,1.8338227]
[1749417038858,0.31876353,106180.0,106170.0,1.94326085]
[1749417039258,0.31876353,106180.0,106170.0,2.30406085]
[1749417040861,0.31876353,106180.0,106170.0,1.94326085]
[1749417041061,0.31876353,106180.0,106170.0,2.30406085]
[1749417041254,0.31876353,106180.0,106170.0,1.94326085]
[1749417041455,0.31876353,106180.0,106170.0,2.30406085]
[1749417042360,0.31876353,106180.0,106170.0,1.94326085]
[1749417042559,0.31876353,106180.0,106170.0,2.30406085]
[1749417043255,0.31876353,106180.0,106170.0,1.94326085]
[1749417043460,0.31876353,106180.0,106170.0,2.30406085]
[1749417050870,0.31876353,106180.0,106170.0,1.94326085]
[1749417051071,0.31876353,106180.0,106170.0,2.30406085]
[1749417053472,0.31876353,106180.0,106170.0,1.94326085]
[1749417053775,0.31876353,106180.0,106170.0,2.30406085]
[1749417055176,0.31876353,106180.0,106170.0,1.94326085]
[1749417055375,0.31876353,106180.0,106170.0,2.30406085]
[1749417055775,0.31876353,106180.0,106170.0,1.94326085]
[1749417055976,0.31876353,106180.0,106170.0,2.30406085]
[1749417056372,0.31876353,106180.0,106170.0,1.94326085]
[1749417056572,0.31876353,106180.0,106170.0,2.30406085]
[1749417058270,0.31876353,106180.0,106170.0,1.94326085]
[1749417058582,0.31876353,106180.0,106170.0,2.30406085]
[1749417060670,0.31856353,106180.0,106170.0,2.30406085]
[1749417063273,0.31856353,106180.0,106170.0,1.94326085]
[1749417063576,0.31856353,106180.0,106170.0,2.30406085]
[1749417063873,0.31856353,106180.0,106170.0,1.94326085]
[1749417064175,0.31856353,106180.0,106170.0,2.30406085]
[1749417065077,0.31856353,106180.0,106170.0,1.8338227]
[1749417066380,0.31856353,106180.0,106170.0,1.4730227]
[1749417066566,0.31856353,106180.0,106170.0,1.8338227]
[1749417069083,0.31856353,106180.0,106170.0,1.4730227]
[1749417069281,0.31856353,106180.0,106170.0,1.8338227]
[1749417069982,0.31856353,106180.0,106170.0,1.4730227]
[1749417070280,0.31856353,106180.0,106170.0,1.8338227]
[1749417070579,0.31856353,106180.0,106170.0,1.4730227]
[1749417070768,0.31856353,106180.0,106170.0,1.8338227]
[1749417073687,0.31856353,106180.0,106170.0,2.30406085]
[1749417075386,0.31856353,106180.0,106170.0,1.94326085]
[1749417075586,0.31856353,106180.0,106170.0,2.30406085]
[1749417078890,0.31856353,106180.0,106170.0,1.94326085]
[1749417079093,0.31856353,106180.0,106170.0,2.30406085]
[1749417080391,0.31856353,106180.0,106170.0,1.94326085]
[1749417080592,0.31856353,106180.0,106170.0,2.30406085]
[1749417081191,0.31856353,106180.0,106170.0,1.94326085]
[1749417081394,0.31856353,106180.0,106170.0,2.30406085]
[1749417082495,0.31856353,106180.0,106170.0,1.8338227]
[1749417084898,0.31856353,106180.0,106170.0,1.4730227]
[1749417085196,0.31856353,106180.0,106170.0,1.8338227]
[1749417085397,0.31856353,106180.0,106170.0,1.4730227]
[1749417085698,0.31856353,106180.0,106170.0,1.8338227]
[1749417086201,0.31856353,106180.0,106170.0,1.4730227]
[1749417086401,0.31856353,106180.0,106170.0,1.8338227]
[1749417087802,0.31856353,106180.0,106170.0,2.30406085]
[1749417088311,0.31856353,106180.0,106170.0,1.94326085]
[1749417088498,0.31856353,106180.0,106170.0,2.30406085]
[1749417089603,0.31856353,106180.0,106170.0,1.94326085]
[1749417089909,0.31856353,106180.0,106170.0,2.30406085]
[1749417092810,0.18416353,106180.0,106170.0,2.30406085]
[1749417093008,0.18416353,106180.0,106170.0,1.8338227]
[1749417095311,0.18416353,106180.0,106170.0,1.4730227]
[1749417095609,0.18416353,106180.0,106170.0,1.8338227]
[1749417098606,0.18416353,106180.0,106170.0,1.4730227]
[1749417098911,0.18416353,106180.0,106170.0,1.8338227]
[1749417099610,0.18416353,106180.0,106170.0,1.4730227]
[1749417099811,0.18416353,106180.0,106170.0,1.8338227]
[1749417100010,0.18416353,106180.0,106170.0,1.4730227]
[1749417100210,0.18416353,106180.0,106170.0,1.8338227]
[1749417100514,0.18416353,106180.0,106170.0,1.4730227]
[1749417100809,0.18416353,106180.0,106170.0,1.8338227]
[1749417101113,0.18416353,106180.0,106170.0,2.21209479]
[1749417101418,0.18416353,106180.0,106170.0,1.85129479]
[1749417101708,0.18416353,106180.0,106170.0,2.21209479]
[1749417101916,0.18416353,106180.0,106170.0,2.21614357]
[1749417103414,0.18416353,106180.0,106170.0,1.8338227]
[1749417104515,0.18416353,106180.0,106170.0,1.4730227]
[1749417104711,0.18416353,106180.0,106170.0,1.8338227]
[1749417105514,0.18416353,106180.0,106170.0,1.4730227]
[1749417105714,0.18416353,106180.0,106170.0,1.8338227]
[1749417106225,0.18416353,106180.0,106170.0,1.4730227]
[1749417106522,0.18416353,106180.0,106170.0,1.8338227]
[1749417106920,0.18416353,106180.0,106170.0,2.30406085]
[1749417110222,0.00409691,106180.0,106170.0,2.48412747]
[1749417110425,0.00429691,106180.0,106170.0,1.94784132]
[1749417110623,0.00429691,106180.0,106170.0,2.12790794]
[1749417110827,0.00429691,106180.0,106170.0,1.94784132]
[1749417111025,0.18436353,106180.0,106170.0,2.12790794]
[1749417111226,0.18436353,106180.0,106170.0,1.8338227]
[1749417112225,0.18436353,106180.0,106170.0,2.30406085]
[1749417112629,0.18436353,106180.0,106170.0,1.94326085]
[1749417112831,0.18436353,106180.0,106170.0,2.30406085]
[1749417115330,0.06123041,106180.0,106170.0,2.30406085]
[1749417116330,0.06127148,106180.0,106170.0,2.30406085]
[1749417118631,0.06127148,106180.0,106170.0,1.94326085]
[1749417118828,0.06127148,106180.0,106170.0,2.30406085]
[1749417120430,0.04597895,106180.0,106170.0,2.30406085]
[1749417123135,0.04597895,106180.0,106170.0,1.94326085]
[1749417123336,0.04597895,106180.0,106170.0,2.30406085]
[1749417124426,0.04597895,106180.0,106170.0,1.94326085]
[1749417124625,0.04597895,106180.0,106170.0,2.30406085]
[1749417127932,0.04597895,106180.0,106170.0,1.94326085]
[1749417128136,0.04597895,106180.0,106170.0,2.30406085]
[1749417128936,0.04597895,106180.0,106170.0,1.94326085]
[1749417129139,0.04597895,106180.0,106170.0,2.30406085]
[1749417131342,0.04597895,106180.0,106170.0,2.30001207]
[1749417131642,0.04597895,106180.0,106170.0,1.82977392]
[1749417132541,0.04597895,106180.0,106170.0,1.4730227]
[1749417132838,0.04597895,106180.0,106170.0,1.8338227]
[1749417133343,0.18010769,106180.0,106170.0,2.30001207]
[1749417134344,0.18010769,106180.0,106170.0,2.30406085]
[1749417135042,0.18010769,106180.0,106170.0,1.94326085]
[1749417135435,0.18010769,106180.0,106170.0,2.30406085]
[1749417136343,0.18010769,106180.0,106170.0,2.30001207]
[1749417137339,0.18010769,106180.0,106170.0,1.93921207]
[1749417137644,0.18010769,106180.0,106170.0,2.30406085]
[1749417142049,0.18010769,106180.0,106170.0,1.8338227]
[1749417142548,0.18010769,106180.0,106170.0,1.4730227]
[1749417142751,0.18010769,106180.0,106170.0,1.8338227]
[1749417143342,0.18010769,106180.0,106170.0,2.21608239]
[1749417144555,0.18010769,106180.0,106170.0,1.85528239]
[1749417144966,0.18010769,106180.0,106170.0,2.21608239]
[1749417146350,0.3936416,106190.0,106180.0,0.1882671]
[1749417146649,0.57370822,106190.0,106180.0,0.1882671]
[1749417146948,0.57370822,106190.0,106180.0,0.28244236]
[1749417147647,0.57570822,106190.0,106180.0,0.28244236]
[1749417147848,0.57670822,106190.0,106180.0,0.28244236]
[1749417149549,0.57670822,106190.0,106180.0,0.31072236]
[1749417150748,0.57670822,106190.0,106180.0,0.34839236]
[1749417153048,0.57670822,106190.0,106180.0,0.73065523]
[1749417155749,0.57670822,106190.0,106180.0,0.73470401]
[1749417156154,0.57670822,106190.0,106180.0,0.91477063]
[1749417156852,0.57670822,106190.0,106180.0,0.91072185]
[1749417157258,0.57670822,106190.0,106180.0,0.73065523]
[1749417159658,0.76495752,106190.0,106180.0,0.73065523]
[1749417171760,0.76495752,106190.0,106180.0,0.34839236]
[1749417177863,0.76495752,106190.0,106180.0,0.47719236]
[1749417181271,0.86267752,106190.0,106180.0,0.47719236]
[1749417195590,0.86267752,106190.0,106180.0,0.65725898]
[1749417196689,0.4943616,106190.0,106180.0,0.65725898]
[1749417196989,0.67442822,106190.0,106180.0,0.65725898]
[1749417197991,0.67442822,106190.0,106180.0,1.03957211]
[1749417198193,0.86267762,106190.0,106180.0,1.03957211]
[1749417198991,0.86267762,106190.0,106180.0,0.9513462]
[1749417200991,0.67442822,106190.0,106180.0,0.9513462]
[1749417205394,0.67442822,106190.0,106180.0,1.0541462]
[1749417206398,0.86267762,106190.0,106180.0,0.87407958]
[1749417206597,0.86267762,106190.0,106180.0,1.0541462]
[1749417207997,0.86267762,106190.0,106180.0,0.76005898]
[1749417212200,0.86267762,106190.0,106180.0,1.14237398]
[1749417216403,0.86267762,106190.0,106180.0,0.96230736]
[1749417223912,0.86267762,106190.0,106180.0,0.57999236]
[1749417225112,0.76495762,106190.0,106180.0,0.57999236]
[1749417225417,1.28863762,106190.0,106180.0,0.57999236]
[1749417231616,1.10038822,106190.0,106180.0,0.57999236]
[1749417231812,1.10038822,106190.0,106180.0,0.76005898]
[1749417233521,1.10038822,106190.0,106180.0,1.05414836]
[1749417234316,1.10038822,106190.0,106180.0,0.76005898]
[1749417234917,1.10038822,106190.0,106180.0,1.14642396]
[1749417235719,1.10038822,106190.0,106180.0,0.76410776]
[1749417236017,1.10038822,106190.0,106180.0,0.76005898]
[1749417240117,0.2703416,106190.0,106180.0,0.76005898]
[1749417240317,0.1366416,106190.0,106180.0,0.76005898]
[1749417240522,0.60920822,106190.0,106180.0,0.86315898]
[1749417241124,0.18320822,106190.0,106180.0,1.16128495]
[1749417241420,0.60920822,106190.0,106180.0,1.16128495]
[1749417241820,0.60920822,106190.0,106180.0,0.86720776]
[1749417242418,0.60920822,106190.0,106180.0,1.2495081]
[1749417243522,0.60920822,106190.0,106180.0,0.86720776]
[1749417245224,0.18320822,106190.0,106180.0,0.86720776]
[1749417245420,0.18340822,106190.0,106180.0,0.86720776]
[1749417245621,0.60936822,106190.0,106180.0,0.86720776]
[1749417246631,0.60936822,106190.0,106180.0,0.68714114]
[1749417247127,0.18340822,106190.0,106180.0,0.68714114]
[1749417247326,0.60936822,106190.0,106180.0,0.68714114]
[1749417248227,0.18340822,106190.0,106180.0,0.68714114]
[1749417248431,0.18320822,106190.0,106180.0,0.68714114]
[1749417248622,0.18340822,106190.0,106180.0,0.68714114]
[1749417248819,0.18340822,106190.0,106180.0,1.04794114]
[1749417250329,0.18320822,106190.0,106180.0,1.04794114]
[1749417250629,0.18340822,106190.0,106180.0,1.22800776]
[1749417250932,0.18320822,106190.0,106180.0,1.22800776]
[1749417251129,0.18340822,106190.0,106180.0,1.22800776]
[1749417251531,0.18340822,106190.0,106180.0,1.04794114]
[1749417255326,0.003,106190.0,106180.0,1.50575438]
[1749417255733,0.0032,106190.0,106180.0,1.32568776]
[1749417255929,0.18006662,106200.0,106190.0,0.1882494]
[1749417256132,0.18006662,106200.0,106190.0,1.46477602]
[1749417256434,0.28410822,106210.0,106190.0,1.41770512]
[1749417256730,0.18026662,106200.0,106190.0,1.43749058]
[1749417257133,0.18326662,106200.0,106190.0,1.43849058]
[1749417257728,0.18626662,106200.0,106190.0,1.43849058]
[1749417258424,0.18626662,106200.0,106190.0,1.90786841]
[1749417259631,0.18626662,106200.0,106190.0,1.94552841]
[1749417260033,0.18626662,106200.0,106190.0,1.97380841]
[1749417260433,0.18626662,106200.0,106190.0,2.26704245]
[1749417261328,0.18626662,106200.0,106190.0,2.27109123]
[1749417261931,0.18626662,106200.0,106190.0,1.8017134]
[1749417263132,0.18626662,106200.0,106190.0,2.1625134]
[1749417263831,0.18626662,106200.0,106190.0,1.86927936]
[1749417264433,0.18626662,106200.0,106190.0,2.25048361]
[1749417265537,0.0818353,106200.0,106190.0,2.33865719]
[1749417266034,0.06654691,106200.0,106190.0,1.61705719]
[1749417266226,0.06654691,106200.0,106190.0,2.33865719]
[1749417267028,0.06654691,106200.0,106190.0,1.86927936]
[1749417268837,0.06654691,106200.0,106190.0,2.33865719]
[1749417269835,0.0062,106200.0,106190.0,2.33865719]
[1749417270041,0.18626662,106200.0,106190.0,2.54575719]
[1749417270240,0.1040416,106210.0,106200.0,0.1882317]
[1749417270433,0.28410822,106210.0,106200.0,1.13711458]
[1749417270640,0.28430822,106210.0,106200.0,1.3171812]
[1749417270839,0.28430822,106210.0,106200.0,1.41134759]
[1749417271044,0.28430822,106210.0,106200.0,1.23128097]
[1749417271541,0.28810822,106210.0,106200.0,0.85129809]
[1749417271934,0.28810822,106210.0,106200.0,0.94889809]
[1749417272235,0.28730822,106210.0,106200.0,0.94889809]
[1749417272434,0.28730822,106210.0,106200.0,1.32988097]
[1749417272935,0.28430822,106210.0,106200.0,1.33088097]
[1749417274837,0.28430822,106210.0,106200.0,0.97008097]
[1749417275039,0.28430822,106210.0,106200.0,1.33088097]
[1749417275642,0.28430822,106210.0,106200.0,1.36854097]
[1749417276140,0.28430822,106210.0,106200.0,1.54860759]
[1749417276334,0.28410822,106210.0,106200.0,1.54860759]
[1749417276543,0.28430822,106210.0,106200.0,1.36854097]
[1749417276843,0.28430822,106210.0,106200.0,1.16762471]
[1749417277742,0.28430822,106210.0,106200.0,1.63700254]
[1749417278146,0.28430822,106210.0,106200.0,2.01801952]
[1749417279343,0.28430822,106210.0,106200.0,1.54864169]